{"text_format":"1","workbook":"xlsx","n_sheets":3,"sheets":["Данные","Результат","Лист3"],"not_rendered":{"charts":0,"images":0,"macros":0,"external_links":0,"defined_names":0,"comments":0,"pivot_tables":0},"unopened":[],"bounds":{"document_bytes":16777216,"sheet_cells":100000,"rows_first":2000,"rows_last":500,"rows_between":2000,"halvings":0,"cell_chars":16384,"cell_head_chars":4096},"cells_cut":0,"cells_raw":0,"read":"whole","date_system":"1900"}

{"sheet":"Данные","index":0,"n_rows":29,"n_cols":2,"rows_kept":29,"cut":false,"hidden":false,"merged":[]}
["Менеджер","Клиент"]
["Маша","Маэстро, кафе"]
["Маша","Территория Красок, торговая фирма"]
["Маша","Урал-Резерв, торговая компания"]
["Маша","Фаворит, ООО, рекламно-производственная компания"]
["Ваня","Авангард-спецодежда Оренбург, ООО, производственно-торговая компания"]
["Ваня","Автотент центр, производственно-торговая фирма"]
["Ваня","Акамуто, студия доставки японской кухни"]
["Ваня","Бегемот, сеть кафе"]
["Ваня","ВЕДИ, ООО, стоматологическая клиника"]
["Ваня","Делакруа, торгово-монтажная компания"]
["Ваня","Дракоша, сеть магазинов игрушек"]
["Ваня","Карамель, лаунж-кафе"]
["Ваня","Крепмаркет, торговая компания"]
["Ваня","Медикал Он Груп-Оренбург, ООО, международный медицинский центр"]
["Ваня","Мир, производственная компания"]
["Ваня","Оптик-Сити, салон оптики"]
["Ваня","Пункт проката горных лыж и сноубордов, ИП Гавриков М.А."]
["Ваня","Ратибор, ООО, охранное предприятие"]
["Петя","Hotel Grand, гостиничный комплекс"]
["Петя","Фалькон, лазертаг-клуб"]
["Федя","Bosal+, магазин автотоваров"]
["Федя","Krovelson, производственно-торговая компания"]
["Федя","Orengun, магазин"]
["Федя","АВАЛОН, служба эвакуации автомобилей"]
["Федя","АвангардСервис, "]
["Федя","авто Rally, торгово-сервисная фирма"]
["Федя","Автомобильная служба, ИП Чердинцева О.И."]
["Федя","АвтоСпецТехника, ООО"]

{"sheet":"Результат","index":1,"n_rows":21,"n_cols":4,"rows_kept":21,"cut":false,"hidden":false,"merged":[]}
["Маша","Ваня","Петя","Федя"]
[{"$f":"VLOOKUP($A$1,Данные!$A$1:$B$29,2,FALSE)","v":"Маэстро, кафе"}]
[{"$f":"VLOOKUP($A$1,Данные!$A$1:$B$29,2,FALSE)","v":"Маэстро, кафе"}]
[{"$f":"VLOOKUP($A$1,Данные!$A$1:$B$29,2,FALSE)","v":"Маэстро, кафе"}]
[{"$f":"VLOOKUP($A$1,Данные!$A$1:$B$29,2,FALSE)","v":"Маэстро, кафе"}]
[{"$f":"VLOOKUP($A$1,Данные!$A$1:$B$29,2,FALSE)","v":"Маэстро, кафе"}]
[{"$f":"VLOOKUP($A$1,Данные!$A$1:$B$29,2,FALSE)","v":"Маэстро, кафе"}]
[{"$f":"VLOOKUP($A$1,Данные!$A$1:$B$29,2,FALSE)","v":"Маэстро, кафе"}]
[{"$f":"VLOOKUP($A$1,Данные!$A$1:$B$29,2,FALSE)","v":"Маэстро, кафе"}]
[{"$f":"VLOOKUP($A$1,Данные!$A$1:$B$29,2,FALSE)","v":"Маэстро, кафе"}]
[{"$f":"VLOOKUP($A$1,Данные!$A$1:$B$29,2,FALSE)","v":"Маэстро, кафе"}]
[{"$f":"VLOOKUP($A$1,Данные!$A$1:$B$29,2,FALSE)","v":"Маэстро, кафе"}]
[{"$f":"VLOOKUP($A$1,Данные!$A$1:$B$29,2,FALSE)","v":"Маэстро, кафе"}]
[{"$f":"VLOOKUP($A$1,Данные!$A$1:$B$29,2,FALSE)","v":"Маэстро, кафе"}]
[{"$f":"VLOOKUP($A$1,Данные!$A$1:$B$29,2,FALSE)","v":"Маэстро, кафе"}]
[{"$f":"VLOOKUP($A$1,Данные!$A$1:$B$29,2,FALSE)","v":"Маэстро, кафе"}]
[{"$f":"VLOOKUP($A$1,Данные!$A$1:$B$29,2,FALSE)","v":"Маэстро, кафе"}]
[{"$f":"VLOOKUP($A$1,Данные!$A$1:$B$29,2,FALSE)","v":"Маэстро, кафе"}]
[{"$f":"VLOOKUP($A$1,Данные!$A$1:$B$29,2,FALSE)","v":"Маэстро, кафе"}]
[{"$f":"VLOOKUP($A$1,Данные!$A$1:$B$29,2,FALSE)","v":"Маэстро, кафе"}]
[{"$f":"VLOOKUP($A$1,Данные!$A$1:$B$29,2,FALSE)","v":"Маэстро, кафе"}]

{"sheet":"Лист3","index":2,"n_rows":0,"n_cols":0,"rows_kept":0,"cut":false,"hidden":false,"merged":[]}